[Event "WSTCC-65 2024"]
[Site "Krakow"]
[Date "2024.07.02"]
[Round "1.8"]
[White "Vogel, Robert"]
[Black "McAndrew, Robert"]
[Result "1/2-1/2"]
[ECO "E77"]
[WhiteElo "2085"]
[BlackElo "1926"]
[Annotator "NA RC"]
[PlyCount "91"]
[EventDate "2024.07.01"]
[EventType "team-tourn"]
[EventCountry "POL"]
[SourceTitle "playchess.com"]
[Source "ChessBase"]
[SourceQuality "1"]
[TimeControl "40/5400+30:1800+30"]

1. d4 {[%emt 0:00:06]} Nf6 {[%emt 0:00:09]} 2. c4 {[%emt 0:00:12]} g6 {[%emt 0:00:25]} 3. Nc3 {[%emt 0:00:13]} Bg7 {[%emt 0:00:11]} 4. e4 {[%emt 0:00:14]} d6 {[%emt 0:00:22]} 5. f4 {[%emt 0:01:17]} c5 {[%emt 0:01:56]} 6. d5 {[%emt 0:00:37]} O-O {[%emt 0:01:23]} 7. Nf3 {[%emt 0:00:25]} e6 {[%emt 0:01:28]} 8. Bd3 {[%emt 0:01:21]} exd5 {[%emt 0:04:17]} 9. cxd5 {[%emt 0:00:25]} b5 {[%emt 0:05:06]} 10. e5 {[%emt 0:02:29]} dxe5 {[%emt 0:01:43]} 11. fxe5 {[%emt 0:00:11]} Ng4 {[%emt 0:04:49]} 12. Bxb5 {[%emt 0:02:39]} Nxe5 {[%emt 0:09:58]} 13. O-O {[%emt 0:02:48]} a6 {[%emt 0:05:43]} 14. Be2 {[%emt 0:03:36]} Nbd7 {[%emt 0:05:02]} 15. Bf4 {[%emt 0:24:37]} Rb8 {[%emt 0:06:46]} 16. Qd2 {[%emt 0:09:33]} Rb4 {[%emt 0:03:07]} 17. Nxe5 {[%emt 0:15:30]} Nxe5 {[%emt 0:06:14]} 18. Rad1 {[%emt 0:01:57]} Ng4 {[%emt 0:12:37]} 19. Bxg4 {[%emt 0:06:29]} Bxg4 {[%emt 0:00:29]} 20. Rde1 {[%emt 0:00:08]} Re8 {[%emt 0:03:08]} 21. Rxe8+ {[%emt 0:02:09]} Qxe8 {[%emt 0:00:06]} 22. Re1 {[%emt 0:00:26]} Qd7 {[%emt 0:01:57]} 23. Be5 {[%emt 0:04:04]} f6 {[%emt 0:03:08]} 24. Bg3 {[%emt 0:00:28]} Bf5 {[%emt 0:05:27]} 25. Re2 {[%emt 0:02:01]} h5 {[%emt 0:01:21]} 26. Qe1 {[%emt 0:02:16]} Kh7 {[%emt 0:07:08]} 27. Re7 {[%emt 0:03:31]} Qc8 {[%emt 0:01:39]} 28. b3 {[%emt 0:05:09]} g5 {[%emt 0:02:32]} 29. Rc7 {[%emt 0:01:24]} Qf8 {[%emt 0:00:59]} 30. h3 {[%emt 0:01:40]} h4 {[%emt 0:02:45]} 31. Bh2 {[%emt 0:00:07]} Rd4 {[%emt 0:01:03]} 32. Kh1 {[%emt 0:01:21]} Kg6 {[%emt 0:00:27]} 33. Bg1 {[%emt 0:00:38]} Qd6 {[%emt 0:01:03]} 34. Rc6 {[%emt 0:00:24]} Qf4 {[%emt 0:00:13]} 35. Rxc5 {[%emt 0:02:42]} Rd3 {[%emt 0:00:47]} 36. Rc4 {[%emt 0:01:15]} Rxh3+ {[%emt 0:01:59]} 37. gxh3 {[%emt 0:00:06]} Qf3+ {[%emt 0:00:10]} 38. Kh2 {[%emt 0:00:06]} Bf8 {[%emt 0:00:21]} 39. Bc5 {[%emt 0:00:55]} Qxh3+ {[%emt 0:00:09]} 40. Kg1 {[%emt 0:00:03]} Bxc5+ {[%emt 0:00:27]} 41. Rxc5 {[%emt 0:30:06]} Qg4+ {[%emt 0:30:13]} 42. Kf2 {[%emt 0:00:00]} Qf4+ {[%emt 0:00:00]} 43. Kg1 {[%emt 0:00:00]} Qg4+ {[%emt 0:00:00]} 44. Kh2 {[%emt 0:00:00]} Qh3+ {[%emt 0:00:00]} 45. Kg1 {[%emt 0:00:00]} Qg4+ {[%emt 0:00:00]} 46. Kh2 1/2-1/2

[Event "WSTCC-65 2024"]
[Site "Krakow"]
[Date "2024.07.02"]
[Round "1.8"]
[White "Algars, Olle"]
[Black "Tsifanskaya, Ludmila A"]
[Result "1/2-1/2"]
[ECO "B38"]
[WhiteElo "1883"]
[BlackElo "1970"]
[Annotator "NA RC"]
[PlyCount "53"]
[EventDate "2024.07.01"]
[EventType "team-tourn"]
[EventCountry "POL"]
[SourceTitle "playchess.com"]
[Source "ChessBase"]
[SourceQuality "1"]
[TimeControl "40/5400+30:1800+30"]

1. c4 c5 2. Nf3 {[%emt 0:02:56]} Nc6 {[%emt 0:00:39]} 3. d4 {[%emt 0:00:43]} cxd4 {[%emt 0:00:07]} 4. Nxd4 {[%emt 0:00:04]} g6 {[%emt 0:00:39]} 5. e4 {[%emt 0:01:29]} Bg7 {[%emt 0:00:06]} 6. Be3 {[%emt 0:01:21]} Nf6 {[%emt 0:01:06]} 7. Nc3 {[%emt 0:00:43]} d6 {[%emt 0:00:44]} 8. h3 {[%emt 0:01:47]} Bd7 {[%emt 0:02:24]} 9. Rc1 {[%emt 0:03:42]} O-O {[%emt 0:00:41]} 10. Be2 {[%emt 0:07:47]} Nxd4 {[%emt 0:00:31]} 11. Bxd4 {[%emt 0:00:22]} Bc6 {[%emt 0:00:03]} 12. Qd3 {[%emt 0:04:55]} a6 {[%emt 0:00:46]} 13. O-O {[%emt 0:02:57]} b5 {[%emt 0:04:18]} 14. Rfd1 {[%emt 0:14:01]} bxc4 {[%emt 0:07:43]} 15. Qxc4 {[%emt 0:00:14]} Bb5 {[%emt 0:01:55]} 16. Nxb5 {[%emt 0:05:38]} axb5 {[%emt 0:00:05]} 17. Qxb5 {[%emt 0:00:41]} Rxa2 {[%emt 0:06:13]} 18. e5 {[%emt 0:07:45]} dxe5 {[%emt 0:09:16]} 19. Bc5 {[%emt 0:02:44]} Qa8 {[%emt 0:06:10]} 20. Ba3 {[%emt 0:00:17]} Rxa3 {[%emt 0:00:40]} 21. bxa3 {[%emt 0:00:07]} Qxa3 {[%emt 0:00:33]} 22. Qc5 {[%emt 0:00:13]} Qxc5 {[%emt 0:00:25]} 23. Rxc5 {[%emt 0:00:06]} Ne4 {[%emt 0:00:30]} 24. Rc7 {[%emt 0:00:44]} Bf6 {[%emt 0:00:24]} 25. Bc4 {[%emt 0:04:08]} Nd6 {[%emt 0:01:21]} 26. Bd5 Kg7 27. Ra1 1/2-1/2

[Event "WSTCC-65 2024"]
[Site "Krakow"]
[Date "2024.07.02"]
[Round "1.9"]
[White "Roos, Daniel"]
[Black "Varley, Peter"]
[Result "1-0"]
[ECO "A08"]
[WhiteElo "2307"]
[BlackElo "2140"]
[Annotator "TA"]
[PlyCount "103"]
[EventDate "2024.07.01"]
[EventType "team-tourn"]
[EventCountry "POL"]
[SourceTitle "playchess.com"]
[Source "ChessBase"]
[SourceQuality "1"]
[TimeControl "40/5400+30:1800+30"]

{[%evp 14,103,45,45,59,54,114,106,110,127,125,123,127,48,47,71,88,81,133,137,166,169,175,179,216,216,209,199,212,192,278,250,273,261,234,164,170,172,168,94,93,94,136,142,139,140,133,142,153,150,212,215,221,219,207,215,215,215,224,209,257,257,668,791,698,698,540,470,911,931,733,648,819,675,1093,1048,773,585,1357,1328,2645,1737,1282,1275,29962,29948,29976,29977,29977,29978,29976,29966]} 1. Nf3 {[%emt 0:00:08]} d5 {[%emt 0:00:06]} 2. g3 {[%emt 0:00:35]} c5 {[%emt 0:00:44]} 3. Bg2 {[%emt 0:00:19]} Nc6 {[%emt 0:00:10]} 4. d4 {[%emt 0:00:22]} cxd4 {[%emt 0:01:36]} 5. Nxd4 {[%emt 0:00:32]} Nf6 {[%emt 0:01:54]} 6. O-O {[%emt 0:01:06]} e5 {[%emt 0:00:45][%cal Be7e5,Be5e4][%mdl 32]} 7. Nxc6 {[%emt 0:00:44]} bxc6 {[%emt 0:00:06] [#]} 8. c4 $1 {[%emt 0:00:10]} Rb8 {[%emt 0:01:27]} (8... Be6 9. Nc3) 9. Bg5 {[%emt 0:10:09]} Be6 {[%emt 0:04:56]} ({Black should play} 9... Be7 $14) 10. Nc3 $16 {[%emt 0:02:11][%cal Bb1c3,Bc3e4,Be4d2,Bd2b3][%mdl 32]} e4 {[%emt 0:05:38] White is better.} 11. Qa4 {[%emt 0:08:50] aiming for Nxd5.} Qd7 {[%emt 0:00:51]} 12. Rfd1 {[%emt 0:06:47]} Rb4 {[%emt 0:09:38]} (12... Rxb2 $2 13. Bxf6 gxf6 14. cxd5 (14. Nxe4 Be7 $18) 14... cxd5 15. Qd4 $18) 13. Qa5 {[%emt 0:05:37]} (13. Qc2 $16) 13... Rxc4 $14 {[%emt 0:09:01]} (13... Rxb2 $2 14. Bxf6 Bb4 15. Qa6 gxf6 16. cxd5 $18 (16. Nxe4 Be7 $16)) 14. Bxf6 $1 {[%emt 0:01:57]} gxf6 {[%emt 0:01:21]} 15. Nxe4 $1 {[%emt 0:00:33]} Qe7 {[%emt 0:00:27]} (15... Be7 $142) 16. Nd2 $16 {[%emt 0:03:22]} Rc5 {[%emt 0:02:41]} 17. Qa6 {[%emt 0:03:00]} Qc7 {[%emt 0:02:26]} 18. Nb3 {[%emt 0:02:30]} Rb5 {[%emt 0:00:46]} 19. Rac1 {[%emt 0:01:23] Black must now prevent Qxb5.} Rb6 {[%emt 0:00:13]} 20. Qa4 {[%emt 0:00:52]} Qd7 {[%emt 0:02:38]} 21. e4 {[%emt 0:04:44]} Rb4 {[%emt 0:03:11]} (21... Be7 $142 22. exd5 cxd5 23. Qxd7+ (23. Rc8+ Bd8 $18) 23... Bxd7) 22. Qa5 $18 {[%emt 0:09:32]} (22. Qxc6 $6 Qxc6 23. Rxc6 dxe4 $16) 22... Rb5 {[%emt 0:02:21]} 23. Qc3 {[%emt 0:01:12]} Be7 {[%emt 0:03:33]} 24. Qxc6 {[%emt 0:04:43]} Qxc6 {[%emt 0:00:52]} 25. Rxc6 {[%emt 0:00:05]} dxe4 {[%emt 0:01:30]} 26. Bxe4 {[%emt 0:00:26]} (26. Nd4 $18 Rc5 27. Bxe4) 26... O-O $16 {[%emt 0:01:24]} 27. Rc7 {[%emt 0:02:27]} Bxb3 {[%emt 0:01:18]} 28. axb3 {[%emt 0:00:11]} Bd8 {[%emt 0:00:43]} 29. Rxa7 {[%emt 0:03:21]} Rxb3 {[%emt 0:00:10]} 30. Rd2 {[%emt 0:04:46] White has more active pieces.} ({Much less strong is} 30. Ra8 Bc7 $16) 30... f5 {[%emt 0:00:13]} 31. Bd5 {[%emt 0:05:00]} Rb4 {[%emt 0:00:17] [#]} (31... Rb8 $16 32. Bc4 Rb6) 32. Bxf7+ $1 $18 {[%emt 0:01:26][%mdl 512]} Rxf7 {[%emt 0:00:14]} (32... Kh8 33. b3) 33. Rxd8+ {[%emt 0:00:07]} Kg7 {[%emt 0:00:05]} 34. Rxf7+ {[%emt 0:01:02]} Kxf7 {[%emt 0:00:06][%mdl 4096] Endgame. KR-KR} 35. Rd2 {[%emt 0:00:04]} Kg6 {[%emt 0:01:34]} 36. Kg2 {[%emt 0:01:40]} Rb3 {[%emt 0:00:06]} 37. Kh3 {[%emt 0:04:03]} Rb4 {[%emt 0:00:13]} (37... f4 38. Kg4 Rb4 39. gxf4 h5+ 40. Kf3 Kf5) 38. f4 {[%emt 0:01:31]} Kh5 {[%emt 0:01:04]} 39. Rd5 {[%emt 0:03:52]} Kg6 {[%emt 0:00:07] [#]} 40. Rd6+ $1 {[%emt 0:00:19]} Kg7 {[%emt 0:00:49]} (40... Kf7 $142 41. Rd2 Kg6) 41. Rd2 {[%emt 0:34:39]} Kg6 {[%emt 0:31:09]} 42. Kh4 {[%emt 0:00:12] Hoping for Rd6+.} Kf6 {[%emt 0:00:35]} 43. Kh5 {[%emt 0:00:30] Rd6+ would now be deadly.} Kg7 {[%emt 0:03:37]} 44. Kg5 {[%emt 0:01:12]} Rb5 {[%emt 0:00:05]} 45. Re2 {[%emt 0:01:18]} h6+ {[%emt 0:01:34]} 46. Kh5 {[%emt 0:00:08]} Rb6 {[%emt 0:00:10]} 47. Re7+ {[%emt 0:01:21]} Kg8 {[%emt 0:01:20]} 48. Re5 {[%emt 0:01:17]} Rxb2 {[%emt 0:00:17]} 49. Kxh6 {[%emt 0:00:33] White mates.} ({Inferior is} 49. Rxf5 Rxh2+ 50. Kg4 (50. Kg6 Rh3 $11) 50... Rg2 $11) 49... Rxh2+ {[%emt 0:00:11]} 50. Kg6 {[%emt 0:00:06][%cal Re5e8]} Kf8 {[%emt 0:00:17]} 51. Rxf5+ {[%emt 0:00:06]} Ke7 {[%emt 0:00:13]} 52. g4 {[%emt 0:00:43] Weighted Error Value: White=0.11 (very precise) /Black=0.33.  Mistake:       	White=2     	Black=5      Inaccurate:     	---       	Black=2      OK:         	White=16    	Black=9      Best:        	White=4     	Black=3      Strong:       	White=2     	---} 1-0

[Event "WSTCC-65 2024"]
[Site "Krakow"]
[Date "2024.07.02"]
[Round "1.9"]
[White "Pigott, John C"]
[Black "Carvalho, Herbert Abreu"]
[Result "1-0"]
[ECO "A29"]
[WhiteElo "2290"]
[BlackElo "2123"]
[Annotator "TA"]
[PlyCount "103"]
[EventDate "2024.07.01"]
[EventType "team-tourn"]
[EventCountry "POL"]
[SourceTitle "playchess.com"]
[Source "ChessBase"]
[SourceQuality "1"]
[TimeControl "40/5400+30:1800+30"]

{[%evp 14,103,0,0,17,0,23,29,97,98,93,91,119,115,123,125,127,122,120,116,120,130,136,111,152,137,170,173,210,205,205,202,175,174,180,152,210,166,156,145,196,164,163,160,163,161,160,139,156,151,167,163,252,201,318,296,346,251,348,341,398,497,526,295,391,397,441,415,434,424,625,609,852,825,709,632,1733,1751,1438,1341,1712,0,29978,29979,29978,29977,29982,29983,29979,5210,29993,29994]} 1. c4 {[%emt 0:00:05]} e5 {[%emt 0:04:05]} 2. Nc3 {[%emt 0:01:02]} Nf6 {[%emt 0:00:11]} 3. Nf3 {[%emt 0:00:05]} Nc6 {[%emt 0:00:06]} 4. g3 {[%emt 0:00:04]} d5 {[%emt 0:01:07]} 5. cxd5 {[%emt 0:00:09]} Nxd5 {[%emt 0:00:10]} 6. Bg2 {[%emt 0:00:08]} Nb6 {[%emt 0:00:24]} 7. O-O {[%emt 0:00:13]} Be7 {[%emt 0:00:05]} 8. b3 {[%emt 0:00:14]} Bf5 {[%emt 0:04:09]} 9. Bb2 {[%emt 0:01:02][%cal Od2d4]} Qd7 {[%emt 0:01:24]} 10. d4 {[%emt 0:39:59]} e4 {[%emt 0:11:59]} (10... exd4 $11 {keeps the balance.} 11. Nb5 Bf6) 11. Ne5 $16 {[%emt 0:00:34]} Nxe5 {[%emt 0:33:43]} 12. dxe5 {[%emt 0:00:22]} Qc6 {[%emt 0:00:10]} 13. Rc1 {[%emt 0:18:57][%cal Oc3e4] Hoping for Nxe4!} Rd8 {[%emt 0:00:32][%cal Ba8d8,Bd8d5,Bd5a5][%mdl 32]} 14. Qc2 $36 {[%emt 0:00:08][%mdl 2048] White has strong initiative.} O-O {[%emt 0:06:58]} 15. Bxe4 {[%emt 0:01:24]} Bxe4 {[%emt 0:00:10]} 16. Nxe4 {[%emt 0:04:44]} Qxc2 {[%emt 0:03:34]} 17. Rxc2 {[%emt 0:00:04]} c6 {[%emt 0:00:11]} 18. e3 {[%emt 0:05:15]} Rd5 {[%emt 0:01:46]} 19. Bd4 {[%emt 0:04:17]} Rfd8 {[%emt 0:00:57]} 20. f4 {[%emt 0:00:30]} Ra5 {[%emt 0:04:53]} 21. Bc5 {[%emt 0:04:53]} Kf8 {[%emt 0:02:19]} 22. Bxe7+ {[%emt 0:02:17]} Kxe7 {[%emt 0:00:10]} 23. Nd6 {[%emt 0:00:11]} Rd7 {[%emt 0:00:26]} 24. Rd1 {[%emt 0:00:52]} g6 {[%emt 0:02:55]} (24... f6 $16 {might work better.}) 25. Rcd2 {[%emt 0:00:26]} Rd5 {[%emt 0:00:37]} 26. Rxd5 {[%emt 0:01:04]} cxd5 {[%emt 0:00:14][%mdl 4096] Endgame. KRN-KRN} (26... Nxd5 $16 27. Rd3 f6) 27. Nb5 {[%emt 0:00:28]} a6 {[%emt 0:00:32]} 28. Nd4 {[%emt 0:00:07]} Rc7 {[%emt 0:00:14]} 29. Kf2 {[%emt 0:00:13]} Nd7 {[%emt 0:00:38]} 30. Ke2 {[%emt 0:00:17]} Nf8 {[%emt 0:01:19]} 31. Kd2 {[%emt 0:00:56] White is more active.} Ne6 {[%emt 0:00:14]} 32. Rc1 {[%emt 0:00:11]} Rd7 {[%emt 0:02:12]} (32... Rxc1 $142 33. Kxc1 Nxd4 34. exd4 h5) 33. Rc8 {[%emt 0:01:30]} h5 {[%emt 0:02:24]} (33... Rd8 $142 34. Rxd8 Nxd8) 34. Kc3 $18 {[%emt 0:00:55]} f6 {[%emt 0:01:08]} 35. Nf3 {[%emt 0:07:07]} g5 {[%emt 0:02:02]} 36. f5 {[%emt 0:01:41]} Nc7 {[%emt 0:02:42]} 37. e6 {[%emt 0:03:39]} Nb5+ {[%emt 0:00:19]} 38. Kd3 {[%emt 0:00:05]} Rc7 {[%emt 0:00:49]} 39. Rxc7+ {[%emt 0:01:51]} Nxc7 {[%emt 0:00:08] KN-KN} 40. h3 {[%emt 0:00:35]} Kd6 {[%emt 0:02:44]} 41. g4 {[%emt 0:31:00]} h4 {[%emt 0:30:38]} (41... hxg4 $142 42. hxg4 Ke7) 42. Nd4 {[%emt 0:00:00]} a5 {[%emt 0:00:00]} 43. a4 {[%emt 0:00:00] [#] White threatens Nb5+ and mate.} Na6 {[%emt 0:00:00]} 44. Nb5+ {[%emt 0:00:00]} Ke7 {[%emt 0:00:00]} 45. Kd4 {[%emt 0:00:00]} Nb4 {[%emt 0:00:00]} 46. Kc5 {[%emt 0:00:00]} Nd3+ {[%emt 0:00:00]} 47. Kd4 $2 {[%emt 0:00:00]} (47. Kxd5 $18 Nf2 48. Nc3 (48. Nd6 Nxh3 49. Ne4 Ng1 $18)) 47... Nf2 $2 {[%emt 0:00:00][%mdl 8192] [#]} (47... Nb4 $11 48. Kc5 Nd3+ 49. Kb6 (49. Kxd5 Nb4+ 50. Kc5 Nd3+ 51. Kd4 Nb4 $18) 49... Nf2) 48. Nc3 {[%emt 0:00:00]} (48. Kxd5 Nxh3 49. Ke4 Nf2+ 50. Kf3 Nd3 $16) 48... Nxh3 {[%emt 0:00:00]} 49. Nxd5+ {[%emt 0:00:00]} (49. Kxd5 $2 {perishes.} Nf2 50. Kc5 Nd3+ 51. Kc4 (51. Kb6 $2 h3 $19) 51... h3 52. Nd5+ (52. Kxd3 $2 h2 $19) 52... Kf8 53. e7+ (53. Kxd3 $2 h2 $19) 53... Ke8 54. Nxf6+ (54. Kxd3 $2 h2 $19) 54... Kxe7 $19) 49... Kd8 {[%emt 0:00:00]} 50. Nxf6 {[%emt 0:00:00]} Nf2 {[%emt 0:00:00]} 51. Ke5 {[%emt 0:02:13]} (51. Nd5 $142 Nxg4 52. f6 Nxf6 53. Nxf6 h3 54. Ke5 Ke7 55. Ng4 (55. Nd5+ Ke8 56. Kd6 h2 57. Nc7+ Kf8 58. e7+ Kg7 59. e8=Q h1=Q 60. Ne6+ Kf6) 55... b6 56. Nh2) 51... h3 {[%emt 0:00:00]} 52. Kd6 {[%emt 0:00:21] Black did not feel at home in the position after the opening.   Weighted Error Value: White=0.30/Black=0.58.  Mistake:       	---       	Black=6      Inaccurate:     	White=1     	Black=5      OK:         	White=12    	Black=11     Best:        	White=3     	Black=1} 1-0

[Event "WSTCC-65 2024"]
[Site "Krakow"]
[Date "2024.07.02"]
[Round "1.9"]
[White "Beilfuss, Wilfried"]
[Black "Quinn, John M"]
[Result "0-1"]
[ECO "E81"]
[WhiteElo "2059"]
[BlackElo "2073"]
[Annotator "NA RC"]
[PlyCount "106"]
[EventDate "2024.07.01"]
[EventType "team-tourn"]
[EventCountry "POL"]
[SourceTitle "playchess.com"]
[Source "ChessBase"]
[SourceQuality "1"]
[TimeControl "40/5400+30:1800+30"]

1. d4 {[%emt 0:00:09]} Nf6 {[%emt 0:00:06]} 2. c4 {[%emt 0:00:09]} g6 {[%emt 0:00:05]} 3. Nc3 {[%emt 0:00:12]} Bg7 {[%emt 0:00:05]} 4. e4 {[%emt 0:00:15]} d6 {[%emt 0:00:04]} 5. f3 {[%emt 0:00:35]} O-O {[%emt 0:00:06]} 6. Be3 {[%emt 0:00:27]} c5 {[%emt 0:01:52]} 7. dxc5 {[%emt 0:00:42]} dxc5 {[%emt 0:00:09]} 8. Qxd8 {[%emt 0:00:28]} Rxd8 {[%emt 0:00:03]} 9. e5 {[%emt 0:00:19]} Nfd7 {[%emt 0:05:09]} 10. f4 {[%emt 0:00:12]} Nc6 {[%emt 0:01:08]} 11. O-O-O {[%emt 0:01:46]} b6 {[%emt 0:01:24]} 12. Be2 {[%emt 0:02:08]} Bb7 {[%emt 0:02:50]} 13. Bf3 {[%emt 0:00:32]} Bh6 {[%emt 0:13:13]} 14. Bd2 {[%emt 0:16:36]} Rab8 {[%emt 0:06:18]} 15. Nge2 {[%emt 0:06:52]} Na5 {[%emt 0:15:03]} 16. Bxb7 {[%emt 0:00:43]} Rxb7 {[%emt 0:00:15]} 17. b3 {[%emt 0:00:28]} Nc6 {[%emt 0:00:35]} 18. Kb2 {[%emt 0:14:22]} Ndxe5 {[%emt 0:05:27]} 19. Ne4 {[%emt 0:08:42]} Rbd7 {[%emt 0:06:58]} 20. fxe5 {[%emt 0:06:15]} Bxd2 {[%emt 0:00:31]} 21. e6 {[%emt 0:00:13]} fxe6 {[%emt 0:01:15]} 22. a3 {[%emt 0:02:48]} Bh6 {[%emt 0:02:05]} 23. Kc2 {[%emt 0:00:41]} Rxd1 {[%emt 0:12:22]} 24. Rxd1 {[%emt 0:00:03]} Rxd1 {[%emt 0:00:09]} 25. Kxd1 {[%emt 0:00:03]} e5 {[%emt 0:00:03]} 26. N2c3 {[%emt 0:04:03]} Kf7 {[%emt 0:03:27]} 27. Kc2 {[%emt 0:01:29]} Ke6 {[%emt 0:02:34]} 28. g4 {[%emt 0:01:44]} Bf4 {[%emt 0:00:59]} 29. h3 {[%emt 0:00:27]} h5 {[%emt 0:02:00]} 30. Kd3 {[%emt 0:02:13]} hxg4 {[%emt 0:04:43]} 31. hxg4 {[%emt 0:00:03]} Bc1 {[%emt 0:00:08]} 32. Nb1 {[%emt 0:04:40]} Kd7 {[%emt 0:04:39]} 33. Kc2 {[%emt 0:00:51]} Bf4 {[%emt 0:00:20]} 34. Kd3 {[%emt 0:01:48]} Nd4 {[%emt 0:03:04]} 35. b4 {[%emt 0:01:00]} cxb4 {[%emt 0:00:10]} 36. axb4 {[%emt 0:00:02]} a5 {[%emt 0:00:07]} 37. bxa5 {[%emt 0:02:22]} bxa5 {[%emt 0:00:03]} 38. Nbc3 {[%emt 0:01:08]} Ne6 {[%emt 0:04:12]} 39. c5 {[%emt 0:01:50]} Kc6 {[%emt 0:02:29]} 40. Kc4 {[%emt 0:01:37]} Nc7 {[%emt 0:01:08]} 41. Nf2 {[%emt 0:42:53]} Be3 {[%emt 0:32:52]} 42. Nd3 {[%emt 0:06:15]} Bd4 {[%emt 0:00:00]} 43. Ne2 {[%emt 0:00:00]} Ba1 {[%emt 0:00:00]} 44. Ndc1 {[%emt 0:00:00]} a4 {[%emt 0:00:00]} 45. Kb4 {[%emt 0:00:00]} Na6+ {[%emt 0:00:00]} 46. Kxa4 {[%emt 0:00:00]} Nxc5+ {[%emt 0:00:00]} 47. Kb4 {[%emt 0:00:00]} Kd5 {[%emt 0:00:00]} 48. Ng3 {[%emt 0:00:00]} e4 {[%emt 0:00:00]} 49. Nce2 {[%emt 0:00:00]} Nd3+ {[%emt 0:00:00]} 50. Kb3 {[%emt 0:00:00]} Bd4 {[%emt 0:00:00]} 51. Kc2 {[%emt 0:00:00]} Ke5 {[%emt 0:00:00]} 52. Nf1 {[%emt 0:00:00]} Nf2 {[%emt 0:00:00]} 53. Nh2 {[%emt 0:00:00]} Be3 {[%emt 0:00:00]} 0-1

[Event "WSTCC-65 2024"]
[Site "Krakow"]
[Date "2024.07.02"]
[Round "1.10"]
[White "Orton, Stephen L A"]
[Black "Becker, Norbert"]
[Result "1/2-1/2"]
[ECO "B35"]
[WhiteElo "2115"]
[BlackElo "2047"]
[Annotator "NA RC"]
[PlyCount "92"]
[EventDate "2024.07.01"]
[EventType "team-tourn"]
[EventCountry "POL"]
[SourceTitle "playchess.com"]
[Source "ChessBase"]
[SourceQuality "1"]
[TimeControl "40/5400+30:1800+30"]

1. e4 {[%emt 0:00:06]} c5 {[%emt 0:00:09]} 2. Nf3 {[%emt 0:00:07]} g6 {[%emt 0:00:10]} 3. d4 {[%emt 0:00:35]} cxd4 {[%emt 0:00:12]} 4. Nxd4 {[%emt 0:00:09]} Bg7 {[%emt 0:01:16]} 5. Nc3 {[%emt 0:02:06]} Nc6 {[%emt 0:00:48]} 6. Be3 {[%emt 0:00:14]} Nf6 {[%emt 0:02:05]} 7. Bc4 {[%emt 0:00:29]} Qa5 {[%emt 0:03:58]} 8. O-O {[%emt 0:02:52]} O-O {[%emt 0:02:56]} 9. h3 {[%emt 0:13:55]} d6 {[%emt 0:03:00]} 10. Bb3 {[%emt 0:06:40]} Bd7 {[%emt 0:06:27]} 11. f4 {[%emt 0:06:41]} Nxd4 {[%emt 0:14:49]} 12. Bxd4 {[%emt 0:01:07]} Bc6 {[%emt 0:01:12]} 13. Qd3 {[%emt 0:04:36]} Nd7 {[%emt 0:08:08]} 14. Bxg7 {[%emt 0:07:16]} Kxg7 {[%emt 0:00:11]} 15. Qd4+ {[%emt 0:01:05]} f6 {[%emt 0:05:15]} 16. Nd5 {[%emt 0:05:47]} Bxd5 {[%emt 0:10:40]} 17. Bxd5 {[%emt 0:02:26]} Rab8 {[%emt 0:07:55]} 18. Rad1 {[%emt 0:04:13]} Qc5 {[%emt 0:03:10]} 19. c3 {[%emt 0:03:00]} a5 {[%emt 0:04:12]} 20. Be6 {[%emt 0:02:00]} Rfd8 {[%emt 0:07:45]} 21. Bxd7 {[%emt 0:08:23]} Qxd4+ {[%emt 0:00:10]} 22. Rxd4 {[%emt 0:01:17]} Rxd7 {[%emt 0:00:19]} 23. e5 {[%emt 0:00:25]} b5 {[%emt 0:04:28]} 24. Rfd1 {[%emt 0:01:12]} Rb6 {[%emt 0:00:57]} 25. Kf2 {[%emt 0:00:57]} Kf7 {[%emt 0:03:16]} 26. g4 {[%emt 0:10:33]} Rd8 {[%emt 0:01:07]} 27. Rd5 {[%emt 0:03:10]} Ke6 {[%emt 0:05:46]} 28. f5+ {[%emt 0:01:44]} Kd7 {[%emt 0:00:49]} 29. exf6 {[%emt 0:03:29]} exf6 {[%emt 0:00:22]} 30. Re1 {[%emt 0:00:23]} Re8 {[%emt 0:00:50]} 31. Rxe8 {[%emt 0:00:51]} Kxe8 {[%emt 0:00:03]} 32. fxg6 {[%emt 0:00:23]} hxg6 {[%emt 0:00:09]} 33. h4 {[%emt 0:00:08]} Ke7 {[%emt 0:01:50]} 34. Kf3 {[%emt 0:00:59]} Ke6 {[%emt 0:01:11]} 35. Ke4 {[%emt 0:00:26]} Kd7 {[%emt 0:01:35]} 36. h5 {[%emt 0:00:37]} f5+ {[%emt 0:00:24]} 37. gxf5 {[%emt 0:03:19]} gxh5 {[%emt 0:00:08]} 38. f6 {[%emt 0:00:34]} h4 {[%emt 0:00:51]} 39. f7 {[%emt 0:03:02]} Ke7 {[%emt 0:00:17]} 40. Rf5 {[%emt 0:00:33]} Rb8 {[%emt 0:00:46]} 41. Rh5 {[%emt 0:31:08]} Kxf7 {[%emt 0:07:20]} 42. Rxh4 {[%emt 0:00:00]} Re8+ {[%emt 0:02:36]} 43. Kd3 {[%emt 0:00:00]} Re5 {[%emt 0:00:36]} 44. b3 {[%emt 0:00:00]} Ke6 {[%emt 0:01:49]} 45. Rh8 {[%emt 0:00:00]} Rg5 {[%emt 0:06:52]} 46. Ra8 {[%emt 0:00:00]} Rg3+ 1/2-1/2